bitfinex/quotes_ETHUSD_20220731
["timestamp","ask_amount","ask_price","bid_price","bid_amount"]
[1659246187312,2.908,1701.8,1701.4,0.13151608]
[1659246187613,2.908,1701.8,1701.4,3.0295628]
[1659246191747,3.48651874,1701.9,1701.5,2.89804672]
[1659246191951,0.21951874,1701.9,1701.5,2.89804672]
[1659246195124,8.8519,1702.1,1701.5,2.89804672]
[1659246195125,2.9954,1702.1,1701.6,0.12519561]
[1659246195481,2.9954,1702.1,1701.7,2.89804672]
[1659246195623,12.26953219,1702.2,1701.7,2.89804672]
[1659246195962,12.56953219,1702.2,1701.7,2.89804672]
[1659246196212,11.96953219,1702.2,1701.7,2.89804672]
[1659246196416,0.46953219,1702.2,1701.7,2.89804672]
[1659246196574,13.26953219,1702.3,1701.8,0.12519561]
[1659246196914,11.5,1702.3,1701.9,2.89804672]
[1659246197484,11.5,1702.3,1701.9,3.02324233]
[1659246197683,11.5,1702.3,1702.0,2.89804672]
[1659246198119,11.5,1702.3,1701.9,3.02324233]
[1659246198674,11.5,1702.3,1701.9,3.02956095]
[1659246199213,11.5,1702.3,1701.9,3.11789367]
[1659246199692,11.5,1702.3,1701.9,3.02956095]
[1659246199925,11.5,1702.3,1701.7,0.2936678]
[1659246200137,0.441,1702.2,1701.6,8.0925]
[1659246200319,0.441,1702.2,1701.6,10.99054672]
[1659246200508,0.66051874,1702.2,1701.6,10.99054672]
[1659246202219,0.66051874,1702.2,1701.6,10.99288798]
[1659246202417,0.66051874,1702.2,1701.6,8.09484126]
[1659246203169,0.66051874,1702.2,1701.7,3.02324233]
[1659246203317,0.66051874,1702.2,1701.8,2.89804672]
[1659246203318,0.21951874,1702.2,1701.8,2.89804672]
[1659246204238,0.21951874,1702.2,1701.7,3.02558345]
[1659246205223,0.21951874,1702.2,1701.7,0.12753673]
[1659246206148,0.21951874,1702.2,1701.8,6.20263725]
[1659246206711,0.21951874,1702.2,1701.8,2.89804672]
[1659246207716,0.21951874,1702.2,1701.7,3.02558345]
[1659246211223,0.21951874,1702.2,1701.8,0.08833272]
[1659246214196,0.21951874,1702.2,1701.7,3.02558345]
[1659246221350,0.21951874,1702.2,1701.7,3.02243748]
[1659246232298,0.16951874,1702.2,1701.7,3.02243748]
[1659246239469,0.63905093,1702.2,1701.7,3.02243748]
[1659246240030,0.63905093,1702.2,1701.7,3.1107702]
[1659246241569,0.63905093,1702.2,1701.7,3.02243748]
[1659246243305,0.16951874,1702.2,1701.7,3.02243748]
[1659246244678,0.16951874,1702.2,1701.7,0.12439076]
[1659246245110,0.63905093,1702.2,1701.7,3.02243748]
[1659246245312,0.16951874,1702.2,1701.7,3.02243748]
[1659246245727,0.63905093,1702.2,1701.7,3.02243748]
[1659246247749,14.64113219,1702.3,1701.8,2.89804672]
[1659246248048,14.64113219,1702.3,1702.0,0.501]
[1659246248429,14.1716,1702.3,1702.0,0.501]
[1659246256891,14.1716,1702.3,1702.1,0.08466248]
[1659246257962,5.8503,1702.3,1702.1,0.08466248]
[1659246258166,5.8503,1702.3,1702.0,0.501]
[1659246264461,5.8503,1702.3,1702.1,0.08466248]
[1659246266310,5.3493,1702.3,1702.1,0.08466248]
[1659246270487,5.3493,1702.3,1701.9,0.19155304]
[1659246270688,5.3493,1702.3,1701.9,3.08959976]
[1659246271048,0.35044827,1702.2,1701.9,3.08959976]
[1659246271667,0.35044827,1702.2,1701.9,3.17426224]
[1659246272449,5.3493,1702.3,1701.9,3.17426224]
[1659246272678,0.05,1702.5,1702.2,0.08466248]
[1659246272894,0.00340886,1702.7,1702.3,6.37587038]
[1659246273069,0.00340886,1702.7,1702.4,2.89804672]
[1659246273449,14.7943,1702.8,1702.4,2.89804672]
[1659246274082,3.2943,1702.8,1702.4,2.89804672]
[1659246274257,3.8943,1702.8,1702.1,2.9471]
[1659246274455,4.40053752,1702.8,1702.1,5.79514672]
[1659246274688,3.95963752,1702.8,1702.1,5.79514672]
[1659246274904,0.00314597,1702.7,1702.1,5.79514672]
[1659246275606,0.00314597,1702.7,1702.1,5.96719636]
[1659246279123,0.00314597,1702.7,1702.2,2.91566377]
[1659246279322,0.00314597,1702.7,1702.3,2.89804672]
[1659246281162,0.00314597,1702.7,1702.2,3.00032625]
[1659246281736,0.00314597,1702.7,1702.2,2.91566377]
[1659246282170,0.00314597,1702.7,1702.2,6.41566377]
[1659246282731,0.00314597,1702.7,1702.2,2.91566377]
[1659246282935,0.00314597,1702.7,1702.2,6.41566377]
[1659246284232,0.00314597,1702.7,1702.4,0.08466248]
[1659246285148,0.00314597,1702.7,1702.2,6.50032625]
[1659246286786,0.00314597,1702.7,1702.4,0.08466248]
[1659246287082,0.00314597,1702.7,1702.3,6.2018612]
[1659246287673,0.00314597,1702.7,1702.4,2.89804672]
[1659246287918,0.00314597,1702.7,1702.4,2.9827092]
[1659246290021,0.00314597,1702.7,1702.4,2.89804672]
[1659246292940,3.2943,1702.8,1702.6,0.08466248]
[1659246293504,0.16951874,1703.0,1702.7,6.20069782]
[1659246295718,0.16951874,1703.0,1702.7,2.89804672]
[1659246296647,0.16951874,1703.0,1702.7,2.84804672]
[1659246297005,0.15951874,1703.0,1702.7,2.84804672]
[1659246297475,0.15951874,1703.0,1702.4,0.05]
[1659246297670,0.4409,1702.9,1702.3,2.8428]
[1659246297881,0.7409,1702.9,1702.3,5.74084672]
[1659246298181,3.95031874,1703.0,1702.4,6.28632973]
[1659246298357,3.95031874,1703.0,1702.4,9.78632973]
[1659246298358,3.0278,1702.9,1702.4,9.78632973]
[1659246298538,3.0278,1702.9,1702.4,6.28632973]
[1659246298724,3.0278,1702.9,1702.4,9.78632973]
[1659246298925,3.0278,1702.9,1702.4,2.89804672]
[1659246301263,0.00314597,1702.8,1702.4,2.89804672]
[1659246302886,0.00314597,1702.8,1702.4,2.9827092]
[1659246303472,0.00314597,1702.8,1702.4,2.89804672]
[1659246304290,0.00314597,1702.8,1702.3,0.47561644]
[1659246304490,0.11533752,1702.6,1702.1,0.05]
[1659246304803,0.11533752,1702.6,1701.9,0.2936432]
[1659246304804,0.11533752,1702.2,1701.9,0.05]
[1659246304961,0.11533752,1702.0,1701.6,0.05]
[1659246305173,0.11533752,1702.0,1701.3,8.6981]
[1659246305174,3.01338424,1702.0,1701.3,0.05]
[1659246305375,9.99866545,1701.9,1701.2,0.05]
[1659246305585,4.1,1701.8,1701.1,2.76273207]
[1659246305794,4.1,1701.8,1701.0,8.3068]
[1659246305795,0.4412,1701.7,1701.0,8.3068]
[1659246306005,0.15951873,1701.6,1701.0,8.2568]
[1659246306867,0.15951873,1701.6,1701.0,8.44719829]
[1659246307993,0.15951873,1701.6,1701.0,11.34524501]
[1659246309463,0.30023672,1701.3,1701.0,0.00834865]
[1659246309665,0.00314598,1701.2,1701.0,0.00834865]
[1659246309967,0.00314598,1701.2,1700.6,0.05]
[1659246310197,0.11533752,1701.1,1700.7,2.89804672]
[1659246310401,0.00314598,1701.0,1700.5,13.41204672]
[1659246310673,0.00314598,1701.0,1700.5,7.7159]
[1659246310870,0.00314598,1701.0,1700.3,0.4915]
[1659246311096,0.00314598,1701.0,1700.4,2.89804672]
[1659246311667,0.11533752,1700.7,1700.4,2.89804672]
[1659246312405,0.11533752,1700.7,1700.2,7.8682]
[1659246312406,0.11533752,1700.7,1700.1,0.05]
[1659246312610,0.4415,1700.6,1700.0,6.0]
[1659246312851,1.04464598,1700.6,1700.0,6.0]
[1659246313147,3.58461427,1700.6,1700.0,6.0]
[1659246313307,0.60314598,1700.6,1700.0,6.0]
[1659246313904,0.11533752,1700.2,1699.8,0.05]
[1659246314102,0.11533752,1700.0,1699.5,11.3049]
[1659246314326,0.11533752,1700.0,1699.6,2.89804672]
[1659246314715,0.11533752,1700.0,1699.5,10.90474672]
[1659246314716,0.30023672,1699.8,1699.5,10.90474672]
[1659246315446,0.30023672,1699.8,1699.2,2.7768]
[1659246315447,0.15951873,1699.7,1699.2,2.7768]
[1659246315607,0.11533752,1699.6,1699.3,2.89804672]
[1659246315807,0.11533752,1699.6,1699.3,2.84804672]
[1659246316006,0.11533752,1699.6,1699.1,11.34664672]
[1659246316221,0.11533752,1699.6,1698.9,0.4919]
[1659246316222,0.15951873,1699.5,1698.9,0.4919]
[1659246316468,0.15951873,1699.5,1698.9,2.89804672]
[1659246316673,0.11533752,1699.4,1698.9,2.89804672]
[1659246317699,0.11533752,1699.4,1698.8,2.89804672]
[1659246317857,0.16266471,1699.3,1698.7,8.0067]
[1659246318063,3.60446471,1699.3,1698.6,3.5]
[1659246318302,3.60446471,1699.3,1698.6,6.39804672]
[1659246318303,4.20446471,1699.3,1698.6,6.39804672]
[1659246318802,4.20446471,1699.3,1698.6,2.89804672]
[1659246319185,3.76266471,1699.3,1698.7,0.18204964]
[1659246319404,3.76266471,1699.3,1698.8,2.89804672]
[1659246319405,0.16266471,1699.3,1698.8,2.89804672]
[1659246319585,12.5298,1699.5,1698.8,6.20885875]
[1659246319887,0.11533752,1699.3,1698.7,0.05]
[1659246320097,0.30023672,1699.1,1698.7,3.08009636]
[1659246320324,0.30023672,1699.1,1698.7,0.18204964]
[1659246320496,0.30023672,1699.1,1698.7,0.13204964]
[1659246322500,0.30023672,1699.1,1698.8,2.89804672]
[1659246322687,0.30023672,1699.1,1698.8,6.20846922]
[1659246323495,0.30023672,1699.1,1698.8,2.89804672]
[1659246325704,0.30023672,1699.1,1699.0,9.0]
[1659246325915,0.30023672,1699.1,1699.0,11.89804672]
[1659246326323,0.30023672,1699.1,1699.0,6.39804672]
[1659246327927,0.30023672,1699.1,1699.0,6.4827092]
[1659246328162,0.05,1699.5,1699.1,0.3]
[1659246328460,0.05,1699.7,1699.4,3.58466248]
[1659246328657,3.46812284,1699.8,1699.4,6.4827092]
[1659246328863,2.8649,1699.8,1699.4,6.4827092]
[1659246329021,3.181,1699.9,1699.6,0.08466248]
[1659246329222,7.8496,1700.0,1699.6,0.08466248]
[1659246329424,0.00359774,1699.9,1699.5,3.03009636]
[1659246330248,7.8496,1700.0,1699.5,3.03009636]
[1659246332370,7.8496,1700.0,1699.5,6.53009636]
[1659246332665,7.8496,1700.0,1699.6,2.9827092]
[1659246332833,0.21266471,1700.1,1699.9,0.08466248]
[1659246333033,1.05,1700.4,1700.0,2.89804672]
[1659246333235,7.9668,1700.6,1700.0,2.89804672]
[1659246333236,7.5253,1700.6,1700.0,2.89804672]
[1659246333472,0.00349254,1700.2,1700.1,0.08466248]
[1659246333654,0.00349254,1700.2,1700.1,0.80571212]
[1659246333851,0.00349254,1700.2,1700.1,4.11379936]
[1659246334056,0.00349254,1700.2,1700.1,3.52479936]
[1659246334372,7.5753,1700.6,1700.1,0.21671212]
[1659246334526,8.1753,1700.6,1700.1,0.21671212]
[1659246334726,8.1253,1700.6,1700.1,0.21671212]
[1659246337151,8.1253,1700.6,1700.1,0.13204964]
[1659246337336,8.1253,1700.6,1700.2,2.89804672]
[1659246337546,7.8253,1700.6,1700.2,2.91394375]
[1659246338045,0.05,1700.9,1700.3,9.83740592]
[1659246338248,0.00386574,1700.7,1700.4,2.89804672]
[1659246338786,0.00386574,1700.7,1700.1,0.3439347]
[1659246339028,0.4914,1700.9,1700.1,2.89804672]
[1659246339168,3.68944672,1700.9,1700.0,6.44804672]
[1659246339374,6.11071143,1700.8,1700.0,6.44804672]
[1659246339544,0.4414,1700.7,1700.0,6.39804672]
[1659246340591,0.21266471,1700.6,1700.0,2.89804672]
[1659246340750,0.51266471,1700.6,1700.0,2.89804672]
[1659246340948,0.7415,1700.5,1700.0,2.89804672]
[1659246341475,0.3,1700.5,1700.0,3.03009636]
[1659246341673,1.25416471,1700.6,1700.0,3.03009636]
[1659246342050,0.81266471,1700.6,1700.1,2.89804672]
[1659246342242,0.81266471,1700.6,1700.1,6.89804672]
[1659246344367,0.81266471,1700.6,1700.2,2.89804672]
[1659246344584,2.99092011,1700.8,1700.3,0.21671212]
[1659246344815,2.99092011,1700.8,1700.4,2.89804672]
[1659246344967,2.9877,1700.8,1700.4,2.89804672]
[1659246345372,1.05,1701.0,1700.4,2.89804672]
[1659246345661,0.00326335,1701.0,1700.6,0.08466248]
[1659246345898,0.00326335,1701.0,1700.6,2.9827092]
[1659246346621,8.7741,1701.2,1700.6,2.9827092]
[1659246346779,9.0241,1701.2,1700.7,0.13204964]
[1659246346980,9.3241,1701.2,1700.7,0.13204964]
[1659246347184,9.3241,1701.2,1700.7,3.03009636]
[1659246347396,8.8828,1701.2,1700.7,3.03009636]
[1659246351034,6.98006471,1701.3,1700.8,2.89804672]
[1659246351252,3.0,1701.2,1700.9,0.08466248]
[1659246351412,3.0,1701.2,1700.9,2.9827092]
[1659246352322,2.75,1701.2,1700.9,2.9827092]
[1659246354938,2.75,1701.2,1700.7,0.13204964]
[1659246355458,3.1913,1701.2,1700.7,0.13204964]
[1659246356834,2.75,1701.2,1700.7,0.13204964]
[1659246358101,2.75,1701.2,1700.5,0.05]
[1659246358263,3.1913,1701.2,1700.6,2.89804672]
[1659246358678,0.21266471,1701.1,1700.6,2.89804672]
[1659246358890,0.21266471,1701.1,1700.6,2.9827092]
[1659246359878,0.21266471,1701.1,1700.6,0.08466248]
[1659246360770,0.21266471,1701.1,1700.7,0.13204964]
[1659246361003,0.21266471,1701.1,1700.8,0.08466248]
[1659246364001,0.21266471,1701.1,1700.7,0.13204964]
[1659246364205,0.21266471,1701.1,1700.7,3.03009636]
[1659246365170,0.21266471,1701.1,1700.7,0.13204964]
[1659246365388,0.21266471,1701.1,1700.4,8.3436963]
[1659246365732,0.21266471,1701.1,1700.5,2.89804672]
[1659246366383,0.21266471,1701.1,1700.5,2.90050081]
[1659246369314,0.21266471,1701.1,1700.5,3.03255045]
[1659246377474,0.2096404,1701.1,1700.5,3.03255045]
[1659246384521,3.45478424,1701.0,1700.3,0.05]
[1659246384721,3.45478424,1701.0,1699.8,2.93931]
[1659246384722,0.11533752,1700.8,1700.2,0.05]
[1659246385044,0.3,1700.6,1700.0,0.05]
[1659246385205,6.1238,1700.6,1699.8,8.2244]
[1659246385383,6.1738,1700.6,1699.9,2.89804672]
[1659246385582,6.1238,1700.6,1699.9,2.89804672]
[1659246385981,6.12717997,1700.6,1699.9,2.89804672]
[1659246386381,6.12717997,1700.6,1699.9,3.03312067]
[1659246386781,6.1238,1700.6,1699.9,3.03312067]
[1659246387013,0.11533752,1700.5,1699.9,3.03312067]
[1659246387216,3.91533752,1700.5,1699.9,0.13507395]
[1659246387420,0.11533752,1700.3,1699.9,0.13507395]
[1659246387690,0.11533752,1700.3,1699.6,0.05]
[1659246387881,11.18613752,1700.3,1699.7,2.89804672]
[1659246388138,3.6,1700.2,1699.7,2.89804672]
[1659246388338,3.8096404,1700.2,1699.7,2.89804672]
[1659246388788,6.70768712,1700.2,1699.5,0.05]
[1659246388991,0.4416,1700.1,1699.4,7.8756]
[1659246389148,0.32497792,1700.0,1699.4,10.72364672]
[1659246389348,0.4416,1699.9,1699.2,0.05]
[1659246389551,0.4416,1699.9,1699.1,0.05]
[1659246389552,2.9027,1699.8,1699.1,0.05]
[1659246389749,5.89804672,1699.7,1699.0,0.05]
[1659246389952,0.11533752,1699.5,1698.9,19.3422]
[1659246390169,0.11533752,1699.3,1698.7,0.492]
[1659246390372,0.11533752,1699.3,1698.8,2.89804672]
[1659246390546,0.32497792,1699.3,1698.8,2.89804672]
[1659246390743,0.62497792,1699.3,1698.8,2.89804672]
[1659246391692,3.92497792,1699.3,1698.8,2.89804672]
[1659246392127,0.92497792,1699.3,1698.8,2.89804672]
[1659246392295,3.92497792,1699.3,1698.8,2.89804672]
[1659246393744,3.92497792,1699.3,1698.7,3.03312067]
[1659246394733,2.9793,1699.4,1698.8,6.83954672]
[1659246394734,0.05,1699.4,1698.8,6.83954672]
[1659246394919,0.05,1699.5,1699.0,0.08466248]
[1659246395125,3.3282,1699.6,1699.0,2.9827092]
[1659246395313,3.3282,1699.6,1699.0,2.89804672]
[1659246396235,3.9282,1699.6,1699.0,2.89804672]
[1659246397548,3.9282,1699.6,1699.0,3.03312067]
[1659246397732,3.9282,1699.6,1699.1,2.89804672]
[1659246399064,1.2096404,1699.7,1699.2,3.63507395]
[1659246399358,0.2096404,1699.7,1699.3,2.89804672]
[1659246400715,14.0905,1699.8,1699.4,0.13507395]
[1659246400716,0.3,1699.8,1699.4,0.13507395]
[1659246400953,3.1842,1699.9,1699.4,0.21973643]
[1659246400954,3.73758988,1699.9,1699.4,0.21973643]
[1659246401816,3.9438404,1699.9,1699.4,0.21973643]
[1659246402162,3.94059403,1699.9,1699.4,0.13507395]
[1659246405269,7.27984075,1699.9,1699.2,0.05]
[1659246405565,10.77984075,1699.9,1699.1,8.2641]
[1659246405773,10.82984075,1699.9,1699.1,11.11214672]
[1659246406463,7.33321178,1699.9,1699.1,11.11214672]
[1659246406638,7.33321178,1699.9,1699.2,0.13507395]
[1659246406841,7.28321178,1699.9,1699.2,0.13507395]
[1659246407357,7.27984075,1699.9,1699.2,0.13507395]
[1659246407717,7.28321186,1699.9,1699.2,0.13507395]
[1659246407949,6.84201186,1699.9,1699.2,0.13507395]
[1659246408537,6.83864075,1699.9,1699.2,0.13507395]
[1659246408965,6.84205771,1699.9,1699.2,0.13507395]
[1659246410072,6.83864075,1699.9,1699.2,0.13507395]
[1659246410454,6.84205771,1699.9,1699.2,0.13507395]
[1659246411258,10.33864075,1699.9,1699.2,0.13507395]
[1659246411475,2.89804672,1699.8,1699.2,0.13507395]
[1659246411683,6.12024672,1699.8,1699.2,0.13507395]
[1659246412257,3.2222,1699.8,1699.2,3.03312067]
[1659246412579,3.2222,1699.8,1699.2,6.53312067]
[1659246413482,3.22558165,1699.8,1699.2,6.53312067]
[1659246414094,3.2222,1699.8,1699.2,6.53312067]
[1659246414394,6.1071,1699.8,1699.2,6.61778315]
[1659246415196,6.3167404,1699.8,1699.2,6.53312067]
[1659246417886,3.4318404,1699.8,1699.2,6.53312067]
[1659246418857,3.4318404,1699.8,1699.2,3.11778315]
[1659246419383,3.4318404,1699.8,1699.2,6.61778315]
[1659246419693,3.4318404,1699.8,1699.2,6.53312067]
[1659246419998,3.4318404,1699.8,1699.2,3.03312067]
[1659246420810,3.4318404,1699.8,1699.2,0.13507395]
[1659246421964,6.32988712,1699.8,1699.2,0.13507395]
[1659246422276,9.62128712,1699.8,1699.2,0.13507395]
[1659246423797,9.62128712,1699.8,1699.2,0.08507395]
[1659246426928,6.7232404,1699.8,1699.2,0.08507395]
[1659246427134,6.2820404,1699.8,1699.2,0.08507395]
[1659246428345,6.8820404,1699.8,1699.2,0.08507395]
[1659246428955,9.78008712,1699.8,1699.2,0.08507395]
[1659246429108,0.4413,1699.7,1699.2,0.08507395]
[1659246429545,0.04999999,1699.6,1699.2,0.08507395]
[1659246430145,3.33934672,1699.5,1698.9,0.05]
[1659246430358,3.33934672,1699.5,1698.7,0.05]
[1659246430359,0.11533752,1699.2,1698.7,0.05]
[1659246430521,0.11533752,1699.2,1698.5,0.2942131]
[1659246430522,3.63944672,1699.1,1698.5,0.05]
[1659246430717,3.63944672,1699.1,1698.2,5.2653349]
[1659246430718,5.89804672,1699.0,1698.3,0.05]
[1659246431058,0.04999999,1698.9,1698.2,3.55]
[1659246431210,3.24804671,1698.9,1698.2,3.5]
[1659246431411,2.89804672,1698.8,1698.1,0.4917]
[1659246431611,3.33954672,1698.8,1698.0,14.9768]
[1659246431867,0.04999999,1698.7,1698.0,14.91664672]
[1659246432626,0.04999999,1698.7,1698.1,6.74862319]
[1659246432829,0.05,1698.9,1698.4,0.08466248]
[1659246433027,11.2623,1699.0,1698.5,2.89804672]
[1659246433447,11.2623,1699.0,1698.5,2.98312067]
[1659246435878,14.7623,1699.0,1698.5,2.98312067]
[1659246436034,0.2596404,1698.9,1698.5,2.98312067]
[1659246438421,2.7689,1699.1,1698.6,2.89804672]
[1659246438621,2.7689,1699.1,1698.7,0.08507395]
[1659246438804,2.7689,1699.1,1698.7,3.06778315]
[1659246439002,1.0,1699.3,1698.8,2.89804672]
[1659246439245,0.05,1699.5,1698.9,3.58507395]
[1659246439445,8.2093,1699.6,1699.0,2.9827092]
[1659246439446,7.768,1699.6,1699.0,2.9827092]
[1659246439606,0.05320194,1699.7,1699.1,2.89804672]
[1659246439940,6.0784,1699.8,1699.2,0.08507395]
[1659246440441,6.0784,1699.8,1699.2,2.98312067]
[1659246440650,6.3380404,1699.8,1699.2,2.98312067]
[1659246441084,6.6380404,1699.8,1699.2,2.98312067]
[1659246441256,6.9380404,1699.8,1699.2,2.98312067]
[1659246442080,6.4968404,1699.8,1699.2,2.98312067]
[1659246442579,6.4968404,1699.8,1699.0,8.4906]
[1659246442580,0.11533752,1699.4,1699.0,8.4906]
[1659246442800,0.11533752,1699.4,1698.7,3.4248]
[1659246442947,0.11533752,1699.4,1698.7,13.83054672]
[1659246443152,14.19043752,1699.4,1698.7,2.89804672]
[1659246443452,0.4414,1699.3,1698.7,2.89804672]
[1659246444184,0.11533752,1699.2,1698.7,2.89804672]
[1659246445893,0.11533752,1699.2,1698.6,0.08507395]
[1659246445894,0.4414,1699.1,1698.6,0.08507395]
[1659246446202,4.0596404,1699.0,1698.4,0.05]
[1659246446404,0.11533752,1698.8,1698.2,0.05]
[1659246446558,3.3,1698.8,1698.3,2.89804672]
[1659246447307,3.3,1698.8,1698.3,2.89443548]
[1659246447965,3.3447404,1698.9,1698.4,3.39608078]
[1659246448338,3.3447404,1698.9,1698.4,0.08507395]
[1659246448508,3.3447404,1698.9,1698.2,0.05]
[1659246448711,0.11533752,1698.8,1698.3,2.89804672]
[1659246449530,0.11533752,1698.8,1698.2,2.89804672]
[1659246450024,0.34471435,1698.7,1698.2,2.89804672]
[1659246451101,0.34471435,1698.7,1698.2,3.33964672]
[1659246451404,0.34471435,1698.7,1698.3,2.89804672]
[1659246468405,3.7351,1698.9,1698.3,2.89804672]
[1659246468750,3.3851,1698.9,1698.3,2.89804672]
[1659246469542,3.4914,1699.0,1698.4,2.9827092]
[1659246469543,0.05,1699.0,1698.4,2.9827092]
[1659246469754,0.05,1699.2,1699.0,0.08466248]
[1659246469909,0.05,1699.5,1699.0,2.9827092]
[1659246470114,6.6111,1699.6,1699.0,2.9827092]
[1659246470115,6.1698,1699.6,1699.0,2.9827092]
[1659246470995,6.1698,1699.6,1698.8,0.05]
[1659246470996,0.11533752,1699.3,1698.8,0.05]
[1659246471138,0.11533752,1699.3,1698.6,0.05]
[1659246471139,3.33944672,1699.2,1698.6,0.05]
[1659246471342,6.1237,1699.1,1698.4,0.05]
[1659246471537,9.6237,1699.1,1698.4,2.89804672]
[1659246471737,0.4414,1699.0,1698.4,2.89804672]
[1659246472153,4.08397158,1699.0,1698.4,2.89804672]
[1659246473450,3.64257158,1699.0,1698.4,2.89804672]
[1659246476582,0.11533752,1698.9,1698.4,2.89804672]
[1659246479300,0.46005187,1698.9,1698.4,2.89804672]
[1659246480012,0.34471435,1698.9,1698.4,2.89804672]
[1659246482325,0.34471435,1698.9,1698.4,2.89538584]
[1659246494102,0.00071435,1698.9,1698.7,3.5]
[1659246494312,3.76373219,1699.6,1699.1,0.08466248]
[1659246494466,0.00399277,1699.7,1699.1,0.08466248]
[1659246494467,0.47352496,1699.7,1699.4,0.08466248]
[1659246494819,3.2942,1699.8,1699.4,2.9827092]
[1659246494968,0.4412,1700.0,1699.4,2.9827092]
[1659246495507,0.00390792,1699.9,1699.4,2.9827092]
[1659246496175,0.7412,1700.0,1699.4,2.9827092]
[1659246496506,4.0412,1700.0,1699.6,0.08466248]
[1659246496656,3.6,1700.0,1699.6,0.08466248]
[1659246499398,3.6,1700.0,1699.5,3.24276107]
[1659246499609,3.6,1700.0,1699.3,0.05]
[1659246499610,0.11533752,1699.9,1699.3,0.05]
[1659246499762,0.11533752,1699.7,1699.2,7.9224]
[1659246499964,0.4912,1699.9,1699.2,7.9224]
[1659246500274,3.49804672,1699.8,1699.1,0.05]
[1659246500506,3.49804672,1699.8,1699.0,1.81481]
[1659246500507,3.4413,1699.7,1699.0,1.81481]
[1659246500670,3.4413,1699.7,1699.1,0.42937683]
[1659246501000,3.4413,1699.7,1699.1,0.34471435]
[1659246501423,3.4413,1699.7,1699.2,0.00217683]
[1659246501814,3.4413,1699.7,1699.2,2.90022355]
[1659246502015,3.0,1699.7,1699.3,0.34471435]
[1659246502257,4.2925,1699.8,1699.3,0.34471435]
[1659246502544,3.8513,1699.8,1699.3,4.84471435]
[1659246504640,3.8513,1699.8,1699.4,0.08466248]
[1659246504891,3.8513,1699.8,1699.4,0.08683905]
[1659246505266,3.8513,1699.8,1699.4,0.00217657]
[1659246506694,3.2513,1699.8,1699.4,0.4315534]
[1659246507486,3.2513,1699.8,1699.4,0.3315534]
[1659246507905,3.2513,1699.8,1699.4,3.52368142]
[1659246510530,0.05,1700.0,1699.4,3.52368142]
[1659246510833,3.0,1700.0,1699.5,2.89804672]
[1659246515536,3.01533752,1700.0,1699.5,2.89804672]
[1659246519662,3.01533752,1700.0,1699.4,3.52368142]
[1659246519826,3.65653752,1700.0,1699.2,3.1867]
[1659246520058,3.65653752,1700.0,1699.2,2.89804672]
[1659246520059,0.2,1699.7,1699.2,2.89804672]
[1659246522743,3.2,1699.7,1699.2,2.89804672]
[1659246522944,0.2,1699.7,1699.2,2.89804672]
[1659246525576,0.2,1699.7,1699.3,0.3315534]
[1659246525778,0.25395048,1699.9,1699.3,3.22960012]
[1659246525978,0.219288,1699.9,1699.3,3.22960012]
[1659246526227,0.21533752,1699.9,1699.3,3.22960012]
[1659246526644,0.01533752,1699.9,1699.4,2.89804672]
[1659246535654,0.2,1699.8,1699.3,0.3315534]
[1659246535855,0.6412,1699.8,1699.3,0.3315534]
[1659246536054,0.6412,1699.8,1699.1,8.3748]
[1659246536055,0.00213933,1699.3,1699.1,0.05]
[1659246536265,0.00213933,1699.3,1698.7,0.05]
[1659246536266,3.00213933,1699.3,1698.7,0.05]
[1659246536427,3.00213933,1699.3,1698.6,0.29419]
[1659246536428,5.87223933,1699.3,1698.5,6.7237]
[1659246536628,9.13973933,1699.3,1698.4,7.3442522]
[1659246536956,9.18973933,1699.3,1698.6,0.3315534]
[1659246537265,9.18973933,1699.3,1698.7,2.89804672]
[1659246537266,14.35163933,1699.3,1698.7,2.89804672]
[1659246537479,14.35163933,1699.3,1698.8,3.8315534]
[1659246537665,14.35163933,1699.3,1698.9,2.89804672]
[1659246537881,0.00213933,1699.3,1698.9,2.89804672]
[1659246538169,0.00213933,1699.3,1699.0,0.3315534]
[1659246538351,0.00213933,1699.3,1699.1,6.20730118]
[1659246538663,0.00213933,1699.3,1699.2,5.89804672]
[1659246538930,0.00213933,1699.3,1699.2,6.22960012]
[1659246539411,0.00213933,1699.3,1699.2,6.67100012]
[1659246540871,0.00213933,1699.3,1699.2,6.22960012]
[1659246541878,0.00213933,1699.3,1699.2,3.22960012]
[1659246546475,0.59213933,1699.3,1699.2,0.3315534]
[1659246546694,0.59213933,1699.3,1698.8,1.96234]
[1659246546866,0.59213933,1699.3,1698.7,8.0262]
[1659246546867,0.19656298,1699.2,1698.7,8.0262]
[1659246547208,0.19656298,1699.2,1698.8,2.89804672]
[1659246547414,0.01533752,1699.1,1698.8,2.89804672]
[1659246548906,0.01533752,1699.1,1698.8,2.89593122]
[1659246549762,0.19656298,1699.2,1698.8,2.89593122]
[1659246552170,0.31747685,1699.3,1698.8,2.89593122]
[1659246552709,0.01747685,1699.3,1698.8,2.89593122]
[1659246558323,0.01747685,1699.3,1698.9,0.3315534]
[1659246558324,0.00213933,1699.3,1698.9,0.3315534]
[1659246558533,0.00213933,1699.3,1699.0,2.89804672]
[1659246559880,0.00213933,1699.3,1699.1,0.33499042]
[1659246560080,0.00213933,1699.3,1699.2,5.89804672]
[1659246560314,0.00213933,1699.3,1699.2,6.10148374]
[1659246561086,0.00213933,1699.3,1699.2,6.39558914]
[1659246562118,0.00213933,1699.3,1699.2,6.34558914]
[1659246564612,0.00213933,1699.3,1699.2,6.14215212]
[1659246567961,0.59213933,1699.3,1699.2,0.2441054]
[1659246568131,0.59213933,1699.3,1698.8,10.02303]
[1659246568458,0.59213933,1699.3,1698.9,6.39804672]
[1659246568759,0.59213933,1699.3,1699.0,2.89804672]
[1659246569112,0.59213933,1699.3,1699.0,3.22960012]
[1659246569113,0.00213933,1699.3,1699.0,3.22960012]
[1659246569518,0.00213933,1699.3,1699.1,2.89804672]
[1659246579636,0.00213933,1699.3,1699.0,3.22960012]
[1659246580453,0.00213933,1699.3,1699.1,6.2074958]
[1659246581210,0.00213933,1699.3,1699.1,2.89804672]
[1659246585278,0.02962435,1699.6,1699.2,3.5]
[1659246585444,0.02962435,1699.6,1699.2,6.39804672]
[1659246585646,3.6,1699.7,1699.2,6.39804672]
[1659246586441,3.6,1699.7,1699.2,6.48503433]
[1659246588285,3.6,1699.7,1699.3,2.89804672]
[1659246588483,3.6,1699.7,1699.3,2.90148374]
[1659246591156,3.6,1699.7,1699.3,3.23303714]
[1659246592875,0.6,1699.7,1699.3,3.23303714]
[1659246593186,3.69573752,1699.8,1699.3,3.23303714]